{"text_format":"1","workbook":"xlsx","n_sheets":5,"sheets":["Saisie","Feuil1","BDD","Intervenants","Synthèse"],"not_rendered":{"charts":0,"images":0,"macros":1,"external_links":0,"defined_names":0,"comments":0,"pivot_tables":1},"unopened":[],"bounds":{"document_bytes":16777216,"sheet_cells":100000,"rows_first":2000,"rows_last":500,"rows_between":2000,"halvings":0,"cell_chars":16384,"cell_head_chars":4096},"cells_cut":0,"cells_raw":0,"read":"whole","date_system":"1900"}

{"sheet":"Saisie","index":0,"n_rows":2,"n_cols":13,"rows_kept":2,"cut":false,"hidden":false,"merged":[]}
[null,"Intervenant","Métier","Site","Projet","Activité","Tâche","Date","Temps passé (en heure)","Descriptif","Investissement (en €)","Semaine","Code"]
[null,null,null,null,null,null,null,"2015-02-10",null,"sf<eqf",null,7," "]

{"sheet":"Feuil1","index":1,"n_rows":10,"n_cols":4,"rows_kept":10,"cut":false,"hidden":false,"merged":[]}
[]
[]
[]
[null,null,null,"ti_mouton - 11 juin 2015 à 09:37 "]
[null,null,null,"Bonjour F894009,"]
[]
[null,null,null,"Je vous met en pièce jointe le fichier sur lequel je travaille. La feuille concernée est celle dénommée \"Saisie\". Le principe est le suivant : chaque semaine des données sont saisies dans les colonnes de B à K. Je souhaite faire en sorte qu'une fois la saisie effectuée, la colonne L renseigne automatiquement le n° de la semaine en fonction de la date saisie en H, et que la colonne M soit une concaténation des info saisies en D et E."]
[null,null,null,"Je connais le code qui permet d'appliquer une fonction excel à une cellule, mais je ne sais pas comment faire pour l'appliquer à une colonne entière..."]
[]
[null,null,null,"Cdt"]

{"sheet":"BDD","index":2,"n_rows":314,"n_cols":7,"rows_kept":314,"cut":false,"hidden":false,"merged":[]}
[]
["Métier","Site","Projet","Activité","Tâche","N°  Fiche Projet","Code"]
["Biplan","Biplan","Bloc de Coffrage Isolant","SouRCing Produit","Veille TeChnologique ",{"$f":"RIGHT(G3,3)","v":"BCI"},"B-BCI"]
["Biplan","Biplan","Bloc de Coffrage Isolant","SouRCing Produit","ANAlyse",{"$f":"RIGHT(G4,3)","v":"BCI"},"B-BCI"]
["Biplan","Biplan","Bloc de Coffrage Isolant","INNovation","Définition du Cahier des cHarges","BCI","B-BCI"]
["Biplan","Biplan","Bloc de Coffrage Isolant","INNovation","PROtotypage","BCI","B-BCI"]
["Biplan","Biplan","Bloc de Coffrage Isolant","DéVeloppement Produit","Suivi Chantier Expérimental","BCI","B-BCI"]
["Biplan","Biplan","Bloc de Coffrage Isolant","DéVeloppement Produit","Point TEchnique","BCI","B-BCI"]
["Biplan","Biplan","Mur PRéusiné","SouRCing Produit","Veille TeChnologique ","MPR","B-MPR"]
["Biplan","Biplan","Mur PRéusiné","SouRCing Produit","ANAlyse","MPR","B-MPR"]
["Biplan","Biplan","Mur PRéusiné","INNovation","Définition du Cahier des cHarges","MPR","B-MPR"]
["Biplan","Biplan","Mur PRéusiné","INNovation","PROtotypage","MPR","B-MPR"]
["Biplan","Biplan","Mur PRéusiné","DéVeloppement Produit","Suivi Chantier Expérimental","MPR","B-MPR"]
["Biplan","Biplan","Mur PRéusiné","DéVeloppement Produit","Point TEchnique","MPR","B-MPR"]
["Biplan","Biplan","Bloc de Coffrage Mix PSE/Bois","SouRCing Produit","Veille TeChnologique ","BCM","B-BCM"]
["Biplan","Biplan","Bloc de Coffrage Mix PSE/Bois","SouRCing Produit","ANAlyse","BCM","B-BCM"]
[null,"Biplan","Bloc de Coffrage Mix PSE/Bois","INNovation","Définition du Cahier des cHarges","BCM","B-BCM"]
["Biplan","Biplan","Bloc de Coffrage Mix PSE/Bois","INNovation","PROtotypage","BCM","B-BCM"]
[null,"Biplan","Bloc de Coffrage Mix PSE/Bois","DéVeloppement Produit","Suivi Chantier Expérimental","BCM","B-BCM"]
["Biplan","Biplan","Bloc de Coffrage Mix PSE/Bois","DéVeloppement Produit","Point TEchnique","BCM","B-BCM"]
["Biplan","Biplan","Conductivité THermique","SouRCing Produit","Veille TeChnologique ","CTH","B-CTH"]
["Biplan","Biplan","Conductivité THermique","SouRCing Produit","ANAlyse","CTH","B-CTH"]
["Biplan","Biplan","Conductivité THermique","INNovation","Définition du Cahier des cHarges","CTH","B-CTH"]
["Biplan","Biplan","Conductivité THermique","INNovation","PROtotypage","CTH","B-CTH"]
["Biplan","Biplan","Conductivité THermique","DéVeloppement Produit","Suivi Chantier Expérimental","CTH","B-CTH"]
["Biplan","Biplan","Conductivité THermique","DéVeloppement Produit","Point TEchnique","CTH","B-CTH"]
["Biplan","Biplan","Contraintes SIsmiques","SouRCing Produit","Veille TeChnologique ","CSI","B-CSI"]
["Biplan","Biplan","Contraintes SIsmiques","SouRCing Produit","ANAlyse","CSI","B-CSI"]
["Biplan","Biplan","Contraintes SIsmiques","INNovation","Définition du Cahier des cHarges","CSI","B-CSI"]
["Biplan","Biplan","Contraintes SIsmiques","INNovation","PROtotypage","CSI","B-CSI"]
["Biplan","Biplan","Contraintes SIsmiques","DéVeloppement Produit","Suivi Chantier Expérimental","CSI","B-CSI"]
["Biplan","Biplan","Contraintes SIsmiques","DéVeloppement Produit","Point TEchnique","CSI","B-CSI"]
["Biplan","Biplan","Béton à Faible Poussée","SouRCing Produit","Veille TeChnologique ","BFP","B-BFP"]
["Biplan","Biplan","Béton à Faible Poussée","SouRCing Produit","ANAlyse","BFP","B-BFP"]
["Biplan","Biplan","Béton à Faible Poussée","INNovation","Définition du Cahier des cHarges","BFP","B-BFP"]
["Biplan","Biplan","Béton à Faible Poussée","INNovation","PROtotypage","BFP","B-BFP"]
["Biplan","Biplan","Béton à Faible Poussée","DéVeloppement Produit","Suivi Chantier Expérimental","BFP","B-BFP"]
["Biplan","Biplan","Béton à Faible Poussée","DéVeloppement Produit","Point TEchnique","BFP","B-BFP"]
["Béton Prêt à l'Emploi","BPE","Energie Maritime Renouvellable","SouRCing Produit","Veille TeChnologique ","EMR","E-EMR"]
["Béton Prêt à l'Emploi","BPE","Energie Maritime Renouvellable","SouRCing Produit","ANAlyse","EMR","E-EMR"]
["Béton Prêt à l'Emploi","BPE","Energie Maritime Renouvellable","INNovation","Définition du Cahier des cHarges","EMR","E-EMR"]
["Béton Prêt à l'Emploi","BPE","Energie Maritime Renouvellable","INNovation","PROtotypage","EMR","E-EMR"]
["Béton Prêt à l'Emploi","BPE","Energie Maritime Renouvellable","Gestion LAboratoire","Essai LAbo","EMR","E-EMR"]
["Béton Prêt à l'Emploi","BPE","Energie Maritime Renouvellable","Gestion LAboratoire","Essai CEntrale","EMR","E-EMR"]
["Béton Prêt à l'Emploi","BPE","Energie Maritime Renouvellable","DéVeloppement Produit","Suivi Chantier Expérimental","EMR","E-EMR"]
["Béton Prêt à l'Emploi","BPE","Energie Maritime Renouvellable","DéVeloppement Produit","Point TEchnique","EMR","E-EMR"]
["Béton Prêt à l'Emploi","BPE","Produit à Changement de Phase","SouRCing Produit","Veille TeChnologique ","PCM","E-PCM"]
["Béton Prêt à l'Emploi","BPE","Produit à Changement de Phase","SouRCing Produit","ANAlyse","PCM","E-PCM"]
["Béton Prêt à l'Emploi","BPE","Produit à Changement de Phase","INNovation","Définition du Cahier des cHarges","PCM","E-PCM"]
["Béton Prêt à l'Emploi","BPE","Produit à Changement de Phase","INNovation","PROtotypage","PCM","E-PCM"]
["Béton Prêt à l'Emploi","BPE","Produit à Changement de Phase","Gestion LAboratoire","Essai LAbo","PCM","E-PCM"]
["Béton Prêt à l'Emploi","BPE","Produit à Changement de Phase","Gestion LAboratoire","Essai CEntrale","PCM","E-PCM"]
["Béton Prêt à l'Emploi","BPE","Produit à Changement de Phase","DéVeloppement Produit","Suivi Chantier Expérimental","PCM","E-PCM"]
["Béton Prêt à l'Emploi","BPE","Produit à Changement de Phase","DéVeloppement Produit","Point TEchnique","PCM","E-PCM"]
["Béton Prêt à l'Emploi","BPE","Produit de Cure Intégré","SouRCing Produit","Veille TeChnologique ","PCI","E-PCI"]
["Béton Prêt à l'Emploi","BPE","Produit de Cure Intégré","SouRCing Produit","ANAlyse","PCI","E-PCI"]
["Béton Prêt à l'Emploi","BPE","Produit de Cure Intégré","INNovation","Définition du Cahier des cHarges","PCI","E-PCI"]
["Béton Prêt à l'Emploi","BPE","Produit de Cure Intégré","INNovation","PROtotypage","PCI","E-PCI"]
["Béton Prêt à l'Emploi","BPE","Produit de Cure Intégré","Gestion LAboratoire","Essai LAbo","PCI","E-PCI"]
["Béton Prêt à l'Emploi","BPE","Produit de Cure Intégré","Gestion LAboratoire","Essai CEntrale","PCI","E-PCI"]
["Béton Prêt à l'Emploi","BPE","Produit de Cure Intégré","DéVeloppement Produit","Suivi Chantier Expérimental","PCI","E-PCI"]
["Béton Prêt à l'Emploi","BPE","Produit de Cure Intégré","DéVeloppement Produit","Point TEchnique","PCI","E-PCI"]
["Béton Prêt à l'Emploi","BPE","Fibre de verre AR","SouRCing Produit","Veille TeChnologique ","FAR","E-FAR"]
["Béton Prêt à l'Emploi","BPE","Fibre de verre AR","SouRCing Produit","ANAlyse","FAR","E-FAR"]
["Béton Prêt à l'Emploi","BPE","Fibre de verre AR","INNovation","Définition du Cahier des cHarges","FAR","E-FAR"]
["Béton Prêt à l'Emploi","BPE","Fibre de verre AR","INNovation","PROtotypage","FAR","E-FAR"]
["Béton Prêt à l'Emploi","BPE","Fibre de verre AR","Gestion LAboratoire","Essai LAbo","FAR","E-FAR"]
["Béton Prêt à l'Emploi","BPE","Fibre de verre AR","Gestion LAboratoire","Essai CEntrale",{"$f":"RIGHT(G68,3)","v":"FAR"},"E-FAR"]
["Béton Prêt à l'Emploi","BPE","Fibre de verre AR","DéVeloppement Produit","Suivi Chantier Expérimental","FAR","E-FAR"]
["Béton Prêt à l'Emploi","BPE","Fibre de verre AR","DéVeloppement Produit","Point TEchnique","FAR","E-FAR"]
["Béton Prêt à l'Emploi","BPE","EcoBAp quille","SouRCing Produit","Veille TeChnologique ","EBA","E-EBA"]
["Béton Prêt à l'Emploi","BPE","EcoBAp quille","SouRCing Produit","ANAlyse","EBA","E-EBA"]
["Béton Prêt à l'Emploi","BPE","EcoBAp quille","INNovation","Définition du Cahier des cHarges","EBA","E-EBA"]
["Béton Prêt à l'Emploi","BPE","EcoBAp quille","INNovation","PROtotypage","EBA","E-EBA"]
["Béton Prêt à l'Emploi","BPE","EcoBAp quille","Gestion LAboratoire","Essai LAbo","EBA","E-EBA"]
["Béton Prêt à l'Emploi","BPE","EcoBAp quille","Gestion LAboratoire","Essai CEntrale","EBA","E-EBA"]
["Béton Prêt à l'Emploi","BPE","EcoBAp quille","DéVeloppement Produit","Suivi Chantier Expérimental","EBA","E-EBA"]
["Béton Prêt à l'Emploi","BPE","EcoBAp quille","DéVeloppement Produit","Point TEchnique","EBA","E-EBA"]
["Béton Prêt à l'Emploi","BPE","Sables de CArrières","SouRCing Produit","Veille TeChnologique ","SCA","E-SCA"]
["Béton Prêt à l'Emploi","BPE","Sables de CArrières","SouRCing Produit","ANAlyse","SCA","E-SCA"]
["Béton Prêt à l'Emploi","BPE","Sables de CArrières","INNovation","Définition du Cahier des cHarges","SCA","E-SCA"]
["Béton Prêt à l'Emploi","BPE","Sables de CArrières","INNovation","PROtotypage","SCA","E-SCA"]
["Béton Prêt à l'Emploi","BPE","Sables de CArrières","Gestion LAboratoire","Essai LAbo","SCA","E-SCA"]
["Béton Prêt à l'Emploi","BPE","Sables de CArrières","Gestion LAboratoire","Essai CEntrale","SCA","E-SCA"]
["Béton Prêt à l'Emploi","BPE","Sables de CArrières","DéVeloppement Produit","Suivi Chantier Expérimental","SCA","E-SCA"]
["Béton Prêt à l'Emploi","BPE","Sables de CArrières","DéVeloppement Produit","Point TEchnique","SCA","E-SCA"]
["Béton Prêt à l'Emploi","BPE","Evolution Nouveaux Adjuvants","SouRCing Produit","Veille TeChnologique ","ENA","E-ENA"]
["Béton Prêt à l'Emploi","BPE","Evolution Nouveaux Adjuvants","SouRCing Produit","ANAlyse","ENA","E-ENA"]
["Béton Prêt à l'Emploi","BPE","Evolution Nouveaux Adjuvants","INNovation","Définition du Cahier des cHarges","ENA","E-ENA"]
["Béton Prêt à l'Emploi","BPE","Evolution Nouveaux Adjuvants","INNovation","PROtotypage","ENA","E-ENA"]
["Béton Prêt à l'Emploi","BPE","Evolution Nouveaux Adjuvants","Gestion LAboratoire","Essai LAbo","ENA","E-ENA"]
["Béton Prêt à l'Emploi","BPE","Evolution Nouveaux Adjuvants","Gestion LAboratoire","Essai CEntrale","ENA","E-ENA"]
["Béton Prêt à l'Emploi","BPE","Evolution Nouveaux Adjuvants","DéVeloppement Produit","Suivi Chantier Expérimental","ENA","E-ENA"]
["Béton Prêt à l'Emploi","BPE","Evolution Nouveaux Adjuvants","DéVeloppement Produit","Point TEchnique","ENA","E-ENA"]
["Béton Prêt à l'Emploi","BPE","Béton Léger Structurel","SouRCing Produit","Veille TeChnologique ","BLS","E-BLS"]
["Béton Prêt à l'Emploi","BPE","Béton Léger Structurel","SouRCing Produit","ANAlyse","BLS","E-BLS"]
["Béton Prêt à l'Emploi","BPE","Béton Léger Structurel","INNovation","Définition du Cahier des cHarges","BLS","E-BLS"]
["Béton Prêt à l'Emploi","BPE","Béton Léger Structurel","INNovation","PROtotypage","BLS","E-BLS"]
["Béton Prêt à l'Emploi","BPE","Béton Léger Structurel","Gestion LAboratoire","Essai LAbo","BLS","E-BLS"]
["Béton Prêt à l'Emploi","BPE","Béton Léger Structurel","Gestion LAboratoire","Essai CEntrale","BLS","E-BLS"]
["Béton Prêt à l'Emploi","BPE","Béton Léger Structurel","DéVeloppement Produit","Suivi Chantier Expérimental","BLS","E-BLS"]
["Béton Prêt à l'Emploi","BPE","Béton Léger Structurel","DéVeloppement Produit","Point TEchnique","BLS","E-BLS"]
["Béton Prêt à l'Emploi","BPE","Chapes Fluides","SouRCing Produit","Veille TeChnologique ","CFL","E-CFL"]
["Béton Prêt à l'Emploi","BPE","Chapes Fluides","SouRCing Produit","ANAlyse","CFL","E-CFL"]
["Béton Prêt à l'Emploi","BPE","Chapes Fluides","INNovation","Définition du Cahier des cHarges","CFL","E-CFL"]
["Béton Prêt à l'Emploi","BPE","Chapes Fluides","INNovation","PROtotypage","CFL","E-CFL"]
["Béton Prêt à l'Emploi","BPE","Chapes Fluides","Gestion LAboratoire","Essai LAbo","CFL","E-CFL"]
["Béton Prêt à l'Emploi","BPE","Chapes Fluides","Gestion LAboratoire","Essai CEntrale","CFL","E-CFL"]
["Béton Prêt à l'Emploi","BPE","Chapes Fluides","DéVeloppement Produit","Suivi Chantier Expérimental","CFL","E-CFL"]
["Béton Prêt à l'Emploi","BPE","Chapes Fluides","DéVeloppement Produit","Point TEchnique","CFL","E-CFL"]
["Béton Prêt à l'Emploi","BPE","Système DUoliss","SouRCing Produit","Veille TeChnologique ","SDU","E-SDU"]
["Béton Prêt à l'Emploi","BPE","Système DUoliss","SouRCing Produit","ANAlyse","SDU","E-SDU"]
["Béton Prêt à l'Emploi","BPE","Système DUoliss","INNovation","Définition du Cahier des cHarges","SDU","E-SDU"]
["Béton Prêt à l'Emploi","BPE","Système DUoliss","INNovation","PROtotypage","SDU","E-SDU"]
["Béton Prêt à l'Emploi","BPE","Système DUoliss","Gestion LAboratoire","Essai LAbo","SDU","E-SDU"]
["Béton Prêt à l'Emploi","BPE","Système DUoliss","Gestion LAboratoire","Essai CEntrale","SDU","E-SDU"]
["Béton Prêt à l'Emploi","BPE","Système DUoliss","DéVeloppement Produit","Suivi Chantier Expérimental","SDU","E-SDU"]
["Béton Prêt à l'Emploi","BPE","Système DUoliss","DéVeloppement Produit","Point TEchnique","SDU","E-SDU"]
["Béton Prêt à l'Emploi","BPE","Béton Anti Termites","SouRCing Produit","Veille TeChnologique ","BAT","E-BAT"]
["Béton Prêt à l'Emploi","BPE","Béton Anti Termites","SouRCing Produit","ANAlyse","BAT","E-BAT"]
["Béton Prêt à l'Emploi","BPE","Béton Anti Termites","INNovation","Définition du Cahier des cHarges","BAT","E-BAT"]
["Béton Prêt à l'Emploi","BPE","Béton Anti Termites","INNovation","PROtotypage","BAT","E-BAT"]
["Béton Prêt à l'Emploi","BPE","Béton Anti Termites","Gestion LAboratoire","Essai LAbo","BAT","E-BAT"]
["Béton Prêt à l'Emploi","BPE","Béton Anti Termites","Gestion LAboratoire","Essai CEntrale","BAT","E-BAT"]
["Béton Prêt à l'Emploi","BPE","Béton Anti Termites","DéVeloppement Produit","Suivi Chantier Expérimental","BAT","E-BAT"]
["Béton Prêt à l'Emploi","BPE","Béton Anti Termites","DéVeloppement Produit","Point TEchnique","BAT","E-BAT"]
["Béton Prêt à l'Emploi","BPE","Chaux VIve","SouRCing Produit","Veille TeChnologique ","CVI","E-CVI"]
["Béton Prêt à l'Emploi","BPE","Chaux VIve","SouRCing Produit","ANAlyse","CVI","E-CVI"]
["Béton Prêt à l'Emploi","BPE","Chaux VIve","INNovation","Définition du Cahier des cHarges","CVI","E-CVI"]
["Béton Prêt à l'Emploi","BPE","Chaux VIve","INNovation","PROtotypage","CVI","E-CVI"]
["Béton Prêt à l'Emploi","BPE","Chaux VIve","Gestion LAboratoire","Essai LAbo","CVI","E-CVI"]
["Béton Prêt à l'Emploi","BPE","Chaux VIve","Gestion LAboratoire","Essai CEntrale",{"$f":"RIGHT(G132,3)","v":"CVI"},"E-CVI"]
["Béton Prêt à l'Emploi","BPE","Chaux VIve","DéVeloppement Produit","Suivi Chantier Expérimental","CVI","E-CVI"]
["Béton Prêt à l'Emploi","BPE","Chaux VIve","DéVeloppement Produit","Point TEchnique","CVI","E-CVI"]
["Béton Prêt à l'Emploi","BPE","Evolution Nouveaux Ciments","SouRCing Produit","Veille TeChnologique ","ENC","E-ENC"]
["Béton Prêt à l'Emploi","BPE","Evolution Nouveaux Ciments","SouRCing Produit","ANAlyse","ENC","E-ENC"]
["Béton Prêt à l'Emploi","BPE","Evolution Nouveaux Ciments","INNovation","Définition du Cahier des cHarges","ENC","E-ENC"]
["Béton Prêt à l'Emploi","BPE","Evolution Nouveaux Ciments","INNovation","PROtotypage","ENC","E-ENC"]
["Béton Prêt à l'Emploi","BPE","Evolution Nouveaux Ciments","Gestion LAboratoire","Essai LAbo","ENC","E-ENC"]
["Béton Prêt à l'Emploi","BPE","Evolution Nouveaux Ciments","Gestion LAboratoire","Essai CEntrale","ENC","E-ENC"]
["Béton Prêt à l'Emploi","BPE","Evolution Nouveaux Ciments","DéVeloppement Produit","Suivi Chantier Expérimental","ENC","E-ENC"]
["Béton Prêt à l'Emploi","BPE","Evolution Nouveaux Ciments","DéVeloppement Produit","Point TEchnique","ENC","E-ENC"]
["Béton Prêt à l'Emploi","BPE","Conductivité THermique","SouRCing Produit","Veille TeChnologique ","CTH","E-CTH"]
["Béton Prêt à l'Emploi","BPE","Conductivité THermique","SouRCing Produit","ANAlyse","CTH","E-CTH"]
["Béton Prêt à l'Emploi","BPE","Conductivité THermique","INNovation","Définition du Cahier des cHarges","CTH","E-CTH"]
["Béton Prêt à l'Emploi","BPE","Conductivité THermique","INNovation","PROtotypage","CTH","E-CTH"]
["Béton Prêt à l'Emploi","BPE","Conductivité THermique","DéVeloppement Produit","Suivi Chantier Expérimental","CTH","E-CTH"]
["Béton Prêt à l'Emploi","BPE","Conductivité THermique","DéVeloppement Produit","Point TEchnique","CTH","E-CTH"]
["Béton Prêt à l'Emploi","BPE","Approche PeRformentiel","SouRCing Produit","Veille TeChnologique ","APR","E-APR"]
["Béton Prêt à l'Emploi","BPE","Approche PeRformentiel","SouRCing Produit","ANAlyse","APR","E-APR"]
["Béton Prêt à l'Emploi","BPE","Approche PeRformentiel","INNovation","Définition du Cahier des cHarges","APR","E-APR"]
["Béton Prêt à l'Emploi","BPE","Approche PeRformentiel","INNovation","PROtotypage","APR","E-APR"]
["Béton Prêt à l'Emploi","BPE","Approche PeRformentiel","DéVeloppement Produit","Suivi Chantier Expérimental","APR","E-APR"]
["Béton Prêt à l'Emploi","BPE","Approche PeRformentiel","DéVeloppement Produit","Point TEchnique","APR","E-APR"]
["Béton Prêt à l'Emploi","BPE","Gestion des DEchets","SouRCing Produit","Veille TeChnologique ","GDE","E-GDE"]
["Béton Prêt à l'Emploi","BPE","Gestion des DEchets","SouRCing Produit","ANAlyse","GDE","E-GDE"]
["Béton Prêt à l'Emploi","BPE","Gestion des DEchets","INNovation","Définition du Cahier des cHarges","GDE","E-GDE"]
["Béton Prêt à l'Emploi","BPE","Gestion des DEchets","INNovation","PROtotypage","GDE","E-GDE"]
["Béton Prêt à l'Emploi","BPE","Gestion des DEchets","DéVeloppement Produit","Suivi Chantier Expérimental","GDE","E-GDE"]
["Béton Prêt à l'Emploi","BPE","Gestion des DEchets","DéVeloppement Produit","Point TEchnique","GDE","E-GDE"]
["Béton Prêt à l'Emploi","BPE","Béton avec granulats de REcyclage","SouRCing Produit","Veille TeChnologique ","BRE","E-BRE"]
["Béton Prêt à l'Emploi","BPE","Béton avec granulats de REcyclage","SouRCing Produit","ANAlyse","BRE","E-BRE"]
["Béton Prêt à l'Emploi","BPE","Béton avec granulats de REcyclage","INNovation","Définition du Cahier des cHarges","BRE","E-BRE"]
["Béton Prêt à l'Emploi","BPE","Béton avec granulats de REcyclage","INNovation","PROtotypage","BRE","E-BRE"]
["Béton Prêt à l'Emploi","BPE","Béton avec granulats de REcyclage","DéVeloppement Produit","Suivi Chantier Expérimental","BRE","E-BRE"]
["Béton Prêt à l'Emploi","BPE","Béton avec granulats de REcyclage","DéVeloppement Produit","Point TEchnique","BRE","E-BRE"]
["Béton Préfa Industriel","PPL","Bloc à Base de Pierre ponce","SouRCing Produit","Veille TeChnologique ","BBP","P-BBP"]
["Béton Préfa Industriel","PPL","Bloc à Base de Pierre ponce","SouRCing Produit","ANAlyse","BBP","P-BBP"]
["Béton Préfa Industriel","PPL","Bloc à Base de Pierre ponce","INNovation","Définition du Cahier des cHarges","BBP","P-BBP"]
["Béton Préfa Industriel","PPL","Bloc à Base de Pierre ponce","INNovation","PROtotypage","BBP","P-BBP"]
["Béton Préfa Industriel","PPL","Bloc à Base de Pierre ponce","Gestion LAboratoire","Essai LAbo","BBP","P-BBP"]
["Béton Préfa Industriel","PPL","Bloc à Base de Pierre ponce","Gestion LAboratoire","Essai CHantier","BBP","P-BBP"]
["Béton Préfa Industriel","PPL","Bloc à Base de Pierre ponce","DéVeloppement Produit","Suivi Chantier Expérimental","BBP","P-BBP"]
["Béton Préfa Industriel","PPL","Bloc à Base de Pierre ponce","DéVeloppement Produit","Point TEchnique","BBP","P-BBP"]
["Béton Préfa Industriel","PPL","Dalle FLammée","SouRCing Produit","Veille TeChnologique ","DFL","P-DFL"]
["Béton Préfa Industriel","PPL","Dalle FLammée","SouRCing Produit","ANAlyse","DFL","P-DFL"]
["Béton Préfa Industriel","PPL","Dalle FLammée","INNovation","Définition du Cahier des cHarges","DFL","P-DFL"]
["Béton Préfa Industriel","PPL","Dalle FLammée","INNovation","PROtotypage","DFL","P-DFL"]
["Béton Préfa Industriel","PPL","Dalle FLammée","Gestion LAboratoire","Essai LAbo","DFL","P-DFL"]
["Béton Préfa Industriel","PPL","Dalle FLammée","Gestion LAboratoire","Essai CHantier","DFL","P-DFL"]
["Béton Préfa Industriel","PPL","Dalle FLammée","DéVeloppement Produit","Suivi Chantier Expérimental","DFL","P-DFL"]
["Béton Préfa Industriel","PPL","Dalle FLammée","DéVeloppement Produit","Point TEchnique","DFL","P-DFL"]
["Béton Préfa Industriel","PPL","Dalle ALlégée","SouRCing Produit","Veille TeChnologique ","DAL","P-DAL"]
["Béton Préfa Industriel","PPL","Dalle ALlégée","SouRCing Produit","ANAlyse","DAL","P-DAL"]
["Béton Préfa Industriel","PPL","Dalle ALlégée","INNovation","Définition du Cahier des cHarges","DAL","P-DAL"]
["Béton Préfa Industriel","PPL","Dalle ALlégée","INNovation","PROtotypage","DAL","P-DAL"]
["Béton Préfa Industriel","PPL","Dalle ALlégée","Gestion LAboratoire","Essai LAbo","DAL","P-DAL"]
["Béton Préfa Industriel","PPL","Dalle ALlégée","Gestion LAboratoire","Essai CHantier","DAL","P-DAL"]
["Béton Préfa Industriel","PPL","Dalle ALlégée","DéVeloppement Produit","Suivi Chantier Expérimental","DAL","P-DAL"]
["Béton Préfa Industriel","PPL","Dalle ALlégée","DéVeloppement Produit","Point TEchnique","DAL","P-DAL"]
["Béton Préfa Industriel","PPL","Sables de CArrières","SouRCing Produit","Veille TeChnologique ","SCA","P-SCA"]
["Béton Préfa Industriel","PPL","Sables de CArrières","SouRCing Produit","ANAlyse","SCA","P-SCA"]
["Béton Préfa Industriel","PPL","Sables de CArrières","INNovation","Définition du Cahier des cHarges","SCA","P-SCA"]
["Béton Préfa Industriel","PPL","Sables de CArrières","INNovation","PROtotypage","SCA","P-SCA"]
["Béton Préfa Industriel","PPL","Sables de CArrières","Gestion LAboratoire","Essai LAbo","SCA","P-SCA"]
["Béton Préfa Industriel","PPL","Sables de CArrières","Gestion LAboratoire","Essai CHantier",{"$f":"RIGHT(G196,3)","v":"SCA"},"P-SCA"]
["Béton Préfa Industriel","PPL","Sables de CArrières","DéVeloppement Produit","Suivi Chantier Expérimental","SCA","P-SCA"]
["Béton Préfa Industriel","PPL","Sables de CArrières","DéVeloppement Produit","Point TEchnique","SCA","P-SCA"]
["Béton Préfa Industriel","PPL","Evolution Nouveaux Adjuvants","SouRCing Produit","Veille TeChnologique ","ENA","P-ENA"]
["Béton Préfa Industriel","PPL","Evolution Nouveaux Adjuvants","SouRCing Produit","ANAlyse","ENA","P-ENA"]
["Béton Préfa Industriel","PPL","Evolution Nouveaux Adjuvants","INNovation","Définition du Cahier des cHarges","ENA","P-ENA"]
["Béton Préfa Industriel","PPL","Evolution Nouveaux Adjuvants","INNovation","PROtotypage","ENA","P-ENA"]
["Béton Préfa Industriel","PPL","Evolution Nouveaux Adjuvants","Gestion LAboratoire","Essai LAbo","ENA","P-ENA"]
["Béton Préfa Industriel","PPL","Evolution Nouveaux Adjuvants","Gestion LAboratoire","Essai CEntrale","ENA","P-ENA"]
["Béton Préfa Industriel","PPL","Evolution Nouveaux Adjuvants","DéVeloppement Produit","Suivi Chantier Expérimental","ENA","P-ENA"]
["Béton Préfa Industriel","PPL","Evolution Nouveaux Adjuvants","DéVeloppement Produit","Point TEchnique","ENA","P-ENA"]
["Béton Préfa Industriel","PPL","Protection Bétons Horizontaux","SouRCing Produit","Veille TeChnologique ","PBH","P-PBH"]
["Béton Préfa Industriel","PPL","Protection Bétons Horizontaux","SouRCing Produit","ANAlyse","PBH","P-PBH"]
["Béton Préfa Industriel","PPL","Protection Bétons Horizontaux","INNovation","Définition du Cahier des cHarges","PBH","P-PBH"]
["Béton Préfa Industriel","PPL","Protection Bétons Horizontaux","INNovation","PROtotypage","PBH","P-PBH"]
["Béton Préfa Industriel","PPL","Protection Bétons Horizontaux","Gestion LAboratoire","Essai LAbo","PBH","P-PBH"]
["Béton Préfa Industriel","PPL","Protection Bétons Horizontaux","Gestion LAboratoire","Essai CHantier","PBH","P-PBH"]
["Béton Préfa Industriel","PPL","Protection Bétons Horizontaux","DéVeloppement Produit","Suivi Chantier Expérimental","PBH","P-PBH"]
["Béton Préfa Industriel","PPL","Protection Bétons Horizontaux","DéVeloppement Produit","Point TEchnique","PBH","P-PBH"]
["Béton Préfa Industriel","PPL","Evolution Nouveaux Ciments","SouRCing Produit","Veille TeChnologique ","ENC","P-ENC"]
["Béton Préfa Industriel","PPL","Evolution Nouveaux Ciments","SouRCing Produit","ANAlyse","ENC","P-ENC"]
["Béton Préfa Industriel","PPL","Evolution Nouveaux Ciments","INNovation","Définition du Cahier des cHarges","ENC","P-ENC"]
["Béton Préfa Industriel","PPL","Evolution Nouveaux Ciments","INNovation","PROtotypage","ENC","P-ENC"]
["Béton Préfa Industriel","PPL","Evolution Nouveaux Ciments","Gestion LAboratoire","Essai LAbo","ENC","P-ENC"]
["Béton Préfa Industriel","PPL","Evolution Nouveaux Ciments","Gestion LAboratoire","Essai CEntrale","ENC","P-ENC"]
["Béton Préfa Industriel","PPL","Evolution Nouveaux Ciments","DéVeloppement Produit","Suivi Chantier Expérimental","ENC","P-ENC"]
["Béton Préfa Industriel","PPL","Evolution Nouveaux Ciments","DéVeloppement Produit","Point TEchnique","ENC","P-ENC"]
["Béton Préfa Industriel","PPL","Conductivité THermique","SouRCing Produit","Veille TeChnologique ","CTH","P-CTH"]
["Béton Préfa Industriel","PPL","Conductivité THermique","SouRCing Produit","ANAlyse","CTH","P-CTH"]
["Béton Préfa Industriel","PPL","Conductivité THermique","INNovation","Définition du Cahier des cHarges","CTH","P-CTH"]
["Béton Préfa Industriel","PPL","Conductivité THermique","INNovation","PROtotypage","CTH","P-CTH"]
["Béton Préfa Industriel","PPL","Conductivité THermique","DéVeloppement Produit","Suivi Chantier Expérimental","CTH","P-CTH"]
["Béton Préfa Industriel","PPL","Conductivité THermique","DéVeloppement Produit","Point TEchnique","CTH","P-CTH"]
["Béton Préfa Industriel","PPL","Béton à Faible Poussée","SouRCing Produit","Veille TeChnologique ","BFP","P-BFP"]
["Béton Préfa Industriel","PPL","Béton à Faible Poussée","SouRCing Produit","ANAlyse","BFP","P-BFP"]
["Béton Préfa Industriel","PPL","Béton à Faible Poussée","INNovation","Définition du Cahier des cHarges","BFP","P-BFP"]
["Béton Préfa Industriel","PPL","Béton à Faible Poussée","INNovation","PROtotypage","BFP","P-BFP"]
["Béton Préfa Industriel","PPL","Béton à Faible Poussée","DéVeloppement Produit","Suivi Chantier Expérimental","BFP","P-BFP"]
["Béton Préfa Industriel","PPL","Béton à Faible Poussée","DéVeloppement Produit","Point TEchnique","BCM","P-BCM"]
["Béton Préfa Industriel","PPL","Béton Léger Structurel","SouRCing Produit","Veille TeChnologique ","BLS","P-BLS"]
["Béton Préfa Industriel","PPL","Béton Léger Structurel","SouRCing Produit","ANAlyse","BLS","P-BLS"]
["Béton Préfa Industriel","PPL","Béton Léger Structurel","INNovation","Définition du Cahier des cHarges","BLS","P-BLS"]
["Béton Préfa Industriel","PPL","Béton Léger Structurel","INNovation","PROtotypage","BLS","P-BLS"]
["Béton Préfa Industriel","PPL","Béton Léger Structurel","Gestion LAboratoire","Essai LAbo","BLS","P-BLS"]
["Béton Préfa Industriel","PPL","Béton Léger Structurel","Gestion LAboratoire","Essai CEntrale","BLS","P-BLS"]
["Béton Préfa Industriel","PPL","Béton Léger Structurel","DéVeloppement Produit","Suivi Chantier Expérimental","BLS","P-BLS"]
["Béton Préfa Industriel","PPL","Béton Léger Structurel","DéVeloppement Produit","Point TEchnique","BLS","P-BLS"]
["Béton Préfa Industriel","Naullet","Rationamisation Formule Bloc","SouRCing Produit","Veille TeChnologique ","RFB","N-RFB"]
["Béton Préfa Industriel","Naullet","Rationamisation Formule Bloc","SouRCing Produit","ANAlyse","RFB","N-RFB"]
["Béton Préfa Industriel","Naullet","Rationamisation Formule Bloc","INNovation","Définition du Cahier des cHarges","RFB","N-RFB"]
["Béton Préfa Industriel","Naullet","Rationamisation Formule Bloc","INNovation","PROtotypage","RFB","N-RFB"]
["Béton Préfa Industriel","Naullet","Rationamisation Formule Bloc","Gestion LAboratoire","Essai LAbo","RFB","N-RFB"]
["Béton Préfa Industriel","Naullet","Rationamisation Formule Bloc","Gestion LAboratoire","Essai CHantier","RFB","N-RFB"]
["Béton Préfa Industriel","Naullet","Rationamisation Formule Bloc","DéVeloppement Produit","Suivi Chantier Expérimental","RFB","N-RFB"]
["Béton Préfa Industriel","Naullet","Rationamisation Formule Bloc","DéVeloppement Produit","Point TEchnique","RFB","N-RFB"]
["Béton Préfa Industriel","Naullet","Energie Maritime Renouvellable","SouRCing Produit","Veille TeChnologique ","EMR","N-EMR"]
["Béton Préfa Industriel","Naullet","Energie Maritime Renouvellable","SouRCing Produit","ANAlyse","EMR","N-EMR"]
["Béton Préfa Industriel","Naullet","Energie Maritime Renouvellable","INNovation","Définition du Cahier des cHarges","EMR","N-EMR"]
["Béton Préfa Industriel","Naullet","Energie Maritime Renouvellable","INNovation","PROtotypage","EMR","N-EMR"]
["Béton Préfa Industriel","Naullet","Energie Maritime Renouvellable","Gestion LAboratoire","Essai LAbo","EMR","N-EMR"]
["Béton Préfa Industriel","Naullet","Energie Maritime Renouvellable","Gestion LAboratoire","Essai CEntrale","EMR","N-EMR"]
["Béton Préfa Industriel","Naullet","Energie Maritime Renouvellable","DéVeloppement Produit","Suivi Chantier Expérimental","EMR","N-EMR"]
["Béton Préfa Industriel","Naullet","Energie Maritime Renouvellable","DéVeloppement Produit","Point TEchnique","EMR","N-EMR"]
["Béton Préfa Industriel","Naullet","Panneaux SAndwich","SouRCing Produit","Veille TeChnologique ","PSA","N-PSA"]
["Béton Préfa Industriel","Naullet","Panneaux SAndwich","SouRCing Produit","ANAlyse",{"$f":"RIGHT(G260,3)","v":"PSA"},"N-PSA"]
["Béton Préfa Industriel","Naullet","Panneaux SAndwich","INNovation","Définition du Cahier des cHarges","PSA","N-PSA"]
["Béton Préfa Industriel","Naullet","Panneaux SAndwich","INNovation","PROtotypage","PSA","N-PSA"]
["Béton Préfa Industriel","Naullet","Panneaux SAndwich","Gestion LAboratoire","Essai LAbo","PSA","N-PSA"]
["Béton Préfa Industriel","Naullet","Panneaux SAndwich","Gestion LAboratoire","Essai CHantier","PSA","N-PSA"]
["Béton Préfa Industriel","Naullet","Panneaux SAndwich","DéVeloppement Produit","Suivi Chantier Expérimental","PSA","N-PSA"]
["Béton Préfa Industriel","Naullet","Panneaux SAndwich","DéVeloppement Produit","Point TEchnique","PSA","N-PSA"]
["Béton Préfa Industriel","Naullet","Béton SCintillant","SouRCing Produit","Veille TeChnologique ","BSC","N-BSC"]
["Béton Préfa Industriel","Naullet","Béton SCintillant","SouRCing Produit","ANAlyse","BSC","N-BSC"]
["Béton Préfa Industriel","Naullet","Béton SCintillant","INNovation","Définition du Cahier des cHarges","BSC","N-BSC"]
["Béton Préfa Industriel","Naullet","Béton SCintillant","INNovation","PROtotypage","BSC","N-BSC"]
["Béton Préfa Industriel","Naullet","Béton SCintillant","Gestion LAboratoire","Essai LAbo","BSC","N-BSC"]
["Béton Préfa Industriel","Naullet","Béton SCintillant","Gestion LAboratoire","Essai CHantier","BSC","N-BSC"]
["Béton Préfa Industriel","Naullet","Béton SCintillant","DéVeloppement Produit","Suivi Chantier Expérimental","BSC","N-BSC"]
["Béton Préfa Industriel","Naullet","Béton SCintillant","DéVeloppement Produit","Point TEchnique","BSC","N-BSC"]
["Béton Préfa Industriel","Naullet","Béton PHosphorescent","SouRCing Produit","Veille TeChnologique ","BPH","N-BPH"]
["Béton Préfa Industriel","Naullet","Béton PHosphorescent","SouRCing Produit","ANAlyse","BPH","N-BPH"]
["Béton Préfa Industriel","Naullet","Béton PHosphorescent","INNovation","Définition du Cahier des cHarges","BPH","N-BPH"]
["Béton Préfa Industriel","Naullet","Béton PHosphorescent","INNovation","PROtotypage","BPH","N-BPH"]
["Béton Préfa Industriel","Naullet","Béton PHosphorescent","Gestion LAboratoire","Essai LAbo","BPH","N-BPH"]
["Béton Préfa Industriel","Naullet","Béton PHosphorescent","Gestion LAboratoire","Essai CHantier","BPH","N-BPH"]
["Béton Préfa Industriel","Naullet","Béton PHosphorescent","DéVeloppement Produit","Suivi Chantier Expérimental","BPH","N-BPH"]
["Béton Préfa Industriel","Naullet","Béton PHosphorescent","DéVeloppement Produit","Point TEchnique","BPH","N-BPH"]
["Béton Préfa Industriel","Naullet","Béton THermosensible","SouRCing Produit","Veille TeChnologique ","BTH","N-BTH"]
["Béton Préfa Industriel","Naullet","Béton THermosensible","SouRCing Produit","ANAlyse","BTH","N-BTH"]
["Béton Préfa Industriel","Naullet","Béton THermosensible","INNovation","Définition du Cahier des cHarges","BTH","N-BTH"]
["Béton Préfa Industriel","Naullet","Béton THermosensible","INNovation","PROtotypage","BTH","N-BTH"]
["Béton Préfa Industriel","Naullet","Béton THermosensible","Gestion LAboratoire","Essai LAbo","BTH","N-BTH"]
["Béton Préfa Industriel","Naullet","Béton THermosensible","Gestion LAboratoire","Essai CHantier","BTH","N-BTH"]
["Béton Préfa Industriel","Naullet","Béton THermosensible","DéVeloppement Produit","Suivi Chantier Expérimental","BTH","N-BTH"]
["Béton Préfa Industriel","Naullet","Béton THermosensible","DéVeloppement Produit","Point TEchnique","BTH","N-BTH"]
["Béton Préfa Industriel","Naullet","Protection Bétons Verticaux","SouRCing Produit","Veille TeChnologique ","PBV","N-PBV"]
["Béton Préfa Industriel","Naullet","Protection Bétons Verticaux","SouRCing Produit","ANAlyse","PBV","N-PBV"]
["Béton Préfa Industriel","Naullet","Protection Bétons Verticaux","INNovation","Définition du Cahier des cHarges","PBV","N-PBV"]
["Béton Préfa Industriel","Naullet","Protection Bétons Verticaux","INNovation","PROtotypage","PBV","N-PBV"]
["Béton Préfa Industriel","Naullet","Protection Bétons Verticaux","Gestion LAboratoire","Essai LAbo","PBV","N-PBV"]
["Béton Préfa Industriel","Naullet","Protection Bétons Verticaux","Gestion LAboratoire","Essai CHantier","PBV","N-PBV"]
["Béton Préfa Industriel","Naullet","Protection Bétons Verticaux","DéVeloppement Produit","Suivi Chantier Expérimental","PBV","N-PBV"]
["Béton Préfa Industriel","Naullet","Protection Bétons Verticaux","DéVeloppement Produit","Point TEchnique","PBV","N-PBV"]
["Béton Préfa Industriel","Naullet","Rationamisation Formule Préfa lourde","SouRCing Produit","Veille TeChnologique ","RFP","N-RFP"]
["Béton Préfa Industriel","Naullet","Rationamisation Formule Préfa lourde","SouRCing Produit","ANAlyse","RFP","N-RFP"]
["Béton Préfa Industriel","Naullet","Rationamisation Formule Préfa lourde","INNovation","Définition du Cahier des cHarges","RFP","N-RFP"]
["Béton Préfa Industriel","Naullet","Rationamisation Formule Préfa lourde","INNovation","PROtotypage","RFP","N-RFP"]
["Béton Préfa Industriel","Naullet","Rationamisation Formule Préfa lourde","Gestion LAboratoire","Essai LAbo","RFP","N-RFP"]
["Béton Préfa Industriel","Naullet","Rationamisation Formule Préfa lourde","Gestion LAboratoire","Essai CHantier","RFP","N-RFP"]
["Béton Préfa Industriel","Naullet","Rationamisation Formule Préfa lourde","DéVeloppement Produit","Suivi Chantier Expérimental","RFP","N-RFP"]
["Béton Préfa Industriel","Naullet","Rationamisation Formule Préfa lourde","DéVeloppement Produit","Point TEchnique","RFP","N-RFP"]
["Béton Préfa Industriel","Naullet","Impression Béton","SouRCing Produit","Veille TeChnologique ","IMB","N-IMB"]
["Béton Préfa Industriel","Naullet","Impression Béton","SouRCing Produit","ANAlyse","IMB","N-IMB"]
["Béton Préfa Industriel","Naullet","Impression Béton","INNovation","Définition du Cahier des cHarges","IMB","N-IMB"]
["Béton Préfa Industriel","Naullet","Impression Béton","INNovation","PROtotypage","IMB","N-IMB"]
["Béton Préfa Industriel","Naullet","Impression Béton","Gestion LAboratoire","Essai LAbo","IMB","N-IMB"]
["Béton Préfa Industriel","Naullet","Impression Béton","Gestion LAboratoire","Essai CHantier","IMB","N-IMB"]
["Béton Préfa Industriel","Naullet","Impression Béton","DéVeloppement Produit","Suivi Chantier Expérimental","IMB","N-IMB"]
["Béton Préfa Industriel","Naullet","Impression Béton","DéVeloppement Produit","Point TEchnique","IMB","N-IMB"]

{"sheet":"Intervenants","index":3,"n_rows":22,"n_cols":1,"rows_kept":22,"cut":false,"hidden":false,"merged":[]}
[]
["NOM Prénom"]
["BONNET Loïc"]
["CAILLEAUD Thierry"]
["CAPOLONGO Oswald"]
["GONCALVES Manu"]
["GAZEAU Didier "]
["POURIAS Loic"]
["SIDI ALI Saïd"]
["TESSIER Judickael"]
["BAUSSON David"]
["GOURE Alexandre"]
["GUILLOU Olivier"]
["PIARD Patrick"]
["DELAHAYE Thomas"]
["BREILLAT Estelle"]
[]
["GIRAUDET Eric"]
[]
["GAZEAU Anthony"]
["DEFONTAINE Stephane"]
["CHAILLOU Frederic"]

{"sheet":"Synthèse","index":4,"n_rows":15,"n_cols":8,"rows_kept":15,"cut":false,"hidden":false,"merged":[]}
[]
[]
[]
[]
[]
[]
[null,null,"Étiquettes de colonnes"]
[null,null,"(vide)",null,"Somme de Temps passé (en heure) (vide)","Somme de Investissement (en €) (vide)","Total Somme de Temps passé (en heure)","Total Somme de Investissement (en €)"]
[null,null,"(vide)"]
[null,"Étiquettes de lignes","Somme de Temps passé (en heure)","Somme de Investissement (en €)"]
[null,"(vide)"]
[null,"(vide)"]
[null,"(vide)"]
[null,"(vide)"]
[null,"Total général"]